[Event "Titled Tuesday Blitz May 24 Early 2022"]
[White "Pranav, V"]
[Black "Kozak, Antoni"]
[WhiteFideId "25060783"]
[BlackFideId "21832030"]
[WhiteElo "2349"]
[BlackElo "2322"]
[Result "0-1"]
[Round "04"]
[TimeControl "180+1"]
[Date "2022.05.24"]
[WhiteClock "0:00:02"]
[BlackClock "0:00:09"]

1. Nf3 {[%clk 0:02:58]}  d5 {[%clk 0:02:59]} 2. g3 {[%clk 0:02:57]}  Nf6 {[%clk 0:03:00]} 3. Bg2 {[%clk 0:02:58]}  Bg4 {[%clk 0:02:57]} 4. O-O {[%clk 0:02:58]}  e6 {[%clk 0:02:56]} 5. d3 {[%clk 0:02:55]}  Be7 {[%clk 0:02:50]} 6. Nbd2 {[%clk 0:02:55]}  O-O {[%clk 0:02:49]} 7. e4 {[%clk 0:02:54]}  c5 {[%clk 0:02:49]} 8. h3 {[%clk 0:02:53]}  Bxf3 {[%clk 0:02:48]} 9. Qxf3 {[%clk 0:02:49]}  Nc6 {[%clk 0:02:48]} 10. Re1 {[%clk 0:02:48]}  Rc8 {[%clk 0:02:41]} 11. c3 {[%clk 0:02:47]}  b5 {[%clk 0:02:37]} 12. exd5 {[%clk 0:02:45]}  Nxd5 {[%clk 0:02:34]} 13. h4 {[%clk 0:02:43]}  Re8 {[%clk 0:02:31]} 14. h5 {[%clk 0:02:41]}  h6 {[%clk 0:02:20]} 15. Qe2 {[%clk 0:02:38]}  b4 {[%clk 0:02:13]} 16. c4 {[%clk 0:02:23]}  Nd4 {[%clk 0:02:06]} 17. Qd1 {[%clk 0:02:21]}  Nb6 {[%clk 0:01:34]} 18. a3 {[%clk 0:02:13]}  a5 {[%clk 0:01:24]} 19. axb4 {[%clk 0:02:12]}  axb4 {[%clk 0:01:25]} 20. Ra7 {[%clk 0:02:08]}  Rc7 {[%clk 0:01:20]} 21. Ra6 {[%clk 0:02:06]}  Nd7 {[%clk 0:01:16]} 22. Nf3 {[%clk 0:02:00]}  Bf6 {[%clk 0:00:55]} 23. Bf4 {[%clk 0:01:58]}  Rc8 {[%clk 0:00:47]} 24. Nd2 {[%clk 0:01:53]}  Nb8 {[%clk 0:00:33]} 25. Ra1 {[%clk 0:01:48]}  Nbc6 {[%clk 0:00:33]} 26. Ne4 {[%clk 0:01:46]}  Be7 {[%clk 0:00:33]} 27. Be3 {[%clk 0:01:44]}  f5 {[%clk 0:00:29]} 28. Nd2 {[%clk 0:01:43]}  Bf6 {[%clk 0:00:29]} 29. Ra6 {[%clk 0:01:40]}  Qd7 {[%clk 0:00:29]} 30. Qa4 {[%clk 0:01:37]}  Red8 {[%clk 0:00:28]} 31. Nb3 {[%clk 0:01:13]}  Nxb3 {[%clk 0:00:27]} 32. Bxc6 {[%clk 0:01:12]}  Qxd3 {[%clk 0:00:23]} 33. Bb7 {[%clk 0:01:06]}  Rb8 {[%clk 0:00:20]} 34. Bg2 {[%clk 0:00:57]}  Nd4 {[%clk 0:00:21]} 35. Kh2 {[%clk 0:00:30]}  Kh8 {[%clk 0:00:20]} 36. Bf4 {[%clk 0:00:29]}  Rbc8 {[%clk 0:00:18]} 37. Raxe6 {[%clk 0:00:26]}  Nf3+ {[%clk 0:00:18]} 38. Kh3 {[%clk 0:00:18]}  Nxe1 {[%clk 0:00:19]} 39. Rxe1 {[%clk 0:00:19]}  Qxc4 {[%clk 0:00:16]} 40. b3 {[%clk 0:00:16]}  Qf7 {[%clk 0:00:15]} 41. Bf3 {[%clk 0:00:16]}  Rd3 {[%clk 0:00:15]} 42. Qa6 {[%clk 0:00:14]}  Rcd8 {[%clk 0:00:13]} 43. Kg2 {[%clk 0:00:13]}  Rxf3 {[%clk 0:00:13]} 44. Kxf3 {[%clk 0:00:14]}  Qd5+ {[%clk 0:00:11]} 45. Ke2 {[%clk 0:00:14]}  Re8+ {[%clk 0:00:12]} 46. Be3 {[%clk 0:00:14]}  Qxb3 {[%clk 0:00:10]} 47. Kf1 {[%clk 0:00:14]}  Qd5 {[%clk 0:00:10]} 48. Kg1 {[%clk 0:00:13]}  Bd4 {[%clk 0:00:10]} 49. Qg6 {[%clk 0:00:11]}  Qe6 {[%clk 0:00:10]} 50. Bd2 {[%clk 0:00:01]}  Qxg6 {[%clk 0:00:09]} 51. hxg6 {[%clk 0:00:01]}  Rxe1+ {[%clk 0:00:08]} 52. Bxe1 {[%clk 0:00:02]}  b3 {[%clk 0:00:09]} 0-1


[Site "https://www.chess.com"]

[Event "Titled Tuesday Blitz May 24 Early 2022"]
[White "Preotu, Razvan"]
[Black "Bellissimo, Joseph F."]
[WhiteFideId "2613280"]
[BlackFideId "2609843"]
[WhiteElo "2407"]
[BlackElo "2061"]
[Result "1/2-1/2"]
[Round "04"]
[TimeControl "180+1"]
[Date "2022.05.25"]
[WhiteClock "0:00:16"]
[BlackClock "0:00:12"]

1. e4 {[%clk 0:03:00]}  e6 {[%clk 0:02:59]} 2. d4 {[%clk 0:03:00]}  d5 {[%clk 0:02:59]} 3. Nc3 {[%clk 0:03:00]}  Nf6 {[%clk 0:03:00]} 4. e5 {[%clk 0:03:00]}  Nfd7 {[%clk 0:02:59]} 5. f4 {[%clk 0:03:00]}  c5 {[%clk 0:03:00]} 6. Nf3 {[%clk 0:03:00]}  Nc6 {[%clk 0:03:01]} 7. Be3 {[%clk 0:02:59]}  a6 {[%clk 0:03:01]} 8. Qd2 {[%clk 0:02:58]}  b5 {[%clk 0:03:02]} 9. Be2 {[%clk 0:02:49]}  Qb6 {[%clk 0:03:01]} 10. a3 {[%clk 0:02:40]}  h6 {[%clk 0:02:14]} 11. Nd1 {[%clk 0:02:02]}  Bb7 {[%clk 0:01:47]} 12. c3 {[%clk 0:01:43]}  O-O-O {[%clk 0:01:45]} 13. b4 {[%clk 0:01:42]}  c4 {[%clk 0:01:38]} 14. a4 {[%clk 0:01:39]}  Re8 {[%clk 0:01:29]} 15. O-O {[%clk 0:01:35]}  Be7 {[%clk 0:01:24]} 16. Bf2 {[%clk 0:01:26]}  f5 {[%clk 0:01:22]} 17. exf6 {[%clk 0:01:24]}  gxf6 {[%clk 0:01:22]} 18. f5 {[%clk 0:01:23]}  Nf8 {[%clk 0:01:18]} 19. Ne3 {[%clk 0:01:22]}  Nd8 {[%clk 0:01:13]} 20. axb5 {[%clk 0:01:20]}  axb5 {[%clk 0:01:13]} 21. fxe6 {[%clk 0:01:14]}  Nfxe6 {[%clk 0:01:10]} 22. Nf5 {[%clk 0:01:06]}  Nf7 {[%clk 0:00:53]} 23. N3h4 {[%clk 0:01:04]}  Rhg8 {[%clk 0:00:49]} 24. Bh5 {[%clk 0:01:02]}  Neg5 {[%clk 0:00:45]} 25. Kh1 {[%clk 0:00:54]}  Bd6 {[%clk 0:00:36]} 26. Nxd6+ {[%clk 0:00:39]}  Qxd6 {[%clk 0:00:34]} 27. Bg3 {[%clk 0:00:39]}  Qd7 {[%clk 0:00:30]} 28. Qf4 {[%clk 0:00:38]}  Kd8 {[%clk 0:00:27]} 29. Nf5 {[%clk 0:00:25]}  Ne4 {[%clk 0:00:25]} 30. Qb8+ {[%clk 0:00:22]}  Bc8 {[%clk 0:00:25]} 31. Ra7 {[%clk 0:00:21]}  Qc6 {[%clk 0:00:12]} 32. Bc7+ {[%clk 0:00:19]}  Kd7 {[%clk 0:00:12]} 33. Bxf7 {[%clk 0:00:17]}  Nf2+ {[%clk 0:00:10]} 34. Kg1 {[%clk 0:00:14]}  Nh3+ {[%clk 0:00:11]} 35. Kh1 {[%clk 0:00:15]}  Nf2+ {[%clk 0:00:11]} 36. Kg1 {[%clk 0:00:15]}  Nh3+ {[%clk 0:00:11]} 37. Kh1 {[%clk 0:00:16]}  Nf2+ {[%clk 0:00:12]} 1/2-1/2


[Site "https://www.chess.com"]

[Event "Titled Tuesday Blitz May 24 Early 2022"]
[White "Prokofiev, Valentyn"]
[Black "Rios Escobar, Adan"]
[WhiteFideId "14160161"]
[BlackFideId "3403645"]
[WhiteElo "2174"]
[BlackElo "2417"]
[Result "1-0"]
[Round "04"]
[TimeControl "180+1"]
[Date "2022.05.25"]
[WhiteClock "0:00:44"]
[BlackClock "0:00:02"]

1. e4 {[%clk 0:03:00]}  c5 {[%clk 0:02:59]} 2. Nf3 {[%clk 0:03:01]}  d6 {[%clk 0:02:59]} 3. Bb5+ {[%clk 0:03:01]}  Nd7 {[%clk 0:02:59]} 4. O-O {[%clk 0:03:01]}  a6 {[%clk 0:02:54]} 5. Bxd7+ {[%clk 0:03:01]}  Bxd7 {[%clk 0:02:53]} 6. c4 {[%clk 0:03:01]}  g6 {[%clk 0:02:46]} 7. d4 {[%clk 0:02:59]}  cxd4 {[%clk 0:02:42]} 8. Nxd4 {[%clk 0:03:00]}  Bg7 {[%clk 0:02:42]} 9. Nc3 {[%clk 0:03:01]}  Rc8 {[%clk 0:02:38]} 10. b3 {[%clk 0:02:54]}  b5 {[%clk 0:02:36]} 11. Be3 {[%clk 0:02:54]}  Nf6 {[%clk 0:02:25]} 12. Qd3 {[%clk 0:02:33]}  bxc4 {[%clk 0:02:20]} 13. bxc4 {[%clk 0:02:34]}  O-O {[%clk 0:02:18]} 14. Rac1 {[%clk 0:02:34]}  Qa5 {[%clk 0:02:09]} 15. f3 {[%clk 0:02:32]}  Rb8 {[%clk 0:01:33]} 16. Nb3 {[%clk 0:02:28]}  Qh5 {[%clk 0:01:31]} 17. Nd5 {[%clk 0:02:26]}  Nxd5 {[%clk 0:01:27]} 18. Qxd5 {[%clk 0:02:25]}  Qe5 {[%clk 0:00:58]} 19. Bd4 {[%clk 0:02:22]}  Qe6 {[%clk 0:00:50]} 20. Bxg7 {[%clk 0:02:18]}  Kxg7 {[%clk 0:00:51]} 21. Qd4+ {[%clk 0:02:19]}  Qf6 {[%clk 0:00:50]} 22. Qa7 {[%clk 0:02:17]}  Be6 {[%clk 0:00:44]} 23. f4 {[%clk 0:02:08]}  Ra8 {[%clk 0:00:35]} 24. Qe3 {[%clk 0:02:08]}  Rfc8 {[%clk 0:00:27]} 25. c5 {[%clk 0:01:31]}  Bxb3 {[%clk 0:00:26]} 26. axb3 {[%clk 0:01:31]}  dxc5 {[%clk 0:00:26]} 27. Rxc5 {[%clk 0:01:32]}  Qb6 {[%clk 0:00:26]} 28. Rfc1 {[%clk 0:01:31]}  Rxc5 {[%clk 0:00:24]} 29. Rxc5 {[%clk 0:01:19]}  Rc8 {[%clk 0:00:21]} 30. Rc3 {[%clk 0:01:16]}  Qxe3+ {[%clk 0:00:10]} 31. Rxe3 {[%clk 0:01:17]}  Rb8 {[%clk 0:00:10]} 32. e5 {[%clk 0:01:12]}  Rb4 {[%clk 0:00:10]} 33. g3 {[%clk 0:01:12]}  h5 {[%clk 0:00:09]} 34. Kf2 {[%clk 0:01:13]}  h4 {[%clk 0:00:09]} 35. Ke2 {[%clk 0:01:13]}  hxg3 {[%clk 0:00:09]} 36. hxg3 {[%clk 0:01:14]}  g5 {[%clk 0:00:08]} 37. f5 {[%clk 0:01:13]}  e6 {[%clk 0:00:09]} 38. fxe6 {[%clk 0:00:57]}  fxe6 {[%clk 0:00:10]} 39. Kd2 {[%clk 0:00:57]}  Kg6 {[%clk 0:00:10]} 40. Kc3 {[%clk 0:00:57]}  Rg4 {[%clk 0:00:08]} 41. Rf3 {[%clk 0:00:58]}  Re4 {[%clk 0:00:07]} 42. Rf6+ {[%clk 0:00:58]}  Kh5 {[%clk 0:00:07]} 43. Rxe6 {[%clk 0:00:58]}  Re3+ {[%clk 0:00:07]} 44. Kc4 {[%clk 0:00:59]}  Rxg3 {[%clk 0:00:08]} 45. Rxa6 {[%clk 0:00:59]}  Re3 {[%clk 0:00:07]} 46. Ra5 {[%clk 0:00:58]}  Kg6 {[%clk 0:00:06]} 47. b4 {[%clk 0:00:53]}  g4 {[%clk 0:00:05]} 48. Kd4 {[%clk 0:00:51]}  Re1 {[%clk 0:00:05]} 49. Ra8 {[%clk 0:00:45]}  Kf5 {[%clk 0:00:03]} 50. Rf8+ {[%clk 0:00:45]}  Kg5 {[%clk 0:00:03]} 51. b5 {[%clk 0:00:44]}  g3 {[%clk 0:00:03]} 52. b6 {[%clk 0:00:44]}  Kh4 {[%clk 0:00:01]} 53. Rh8+ {[%clk 0:00:43]}  Kg4 {[%clk 0:00:02]} 54. b7 {[%clk 0:00:43]}  Kf4 {[%clk 0:00:01]} 55. Rf8+ {[%clk 0:00:43]}  Kg4 {[%clk 0:00:01]} 56. b8=Q {[%clk 0:00:43]}  Rd1+ {[%clk 0:00:01]} 57. Ke4 {[%clk 0:00:42]}  Re1+ {[%clk 0:00:01]} 58. Kd5 {[%clk 0:00:42]}  Rd1+ {[%clk 0:00:02]} 59. Ke6 {[%clk 0:00:43]}  g2 {[%clk 0:00:02]} 60. Rg8+ {[%clk 0:00:43]}  Kf3 {[%clk 0:00:03]} 61. Qb3+ {[%clk 0:00:43]}  Kf2 {[%clk 0:00:03]} 62. Qc2+ {[%clk 0:00:43]}  Ke3 {[%clk 0:00:01]} 63. Rg3+ {[%clk 0:00:43]}  Kf4 {[%clk 0:00:01]} 64. Qf2+ {[%clk 0:00:43]}  Ke4 {[%clk 0:00:01]} 65. Rg4+ {[%clk 0:00:43]}  Kd3 {[%clk 0:00:02]} 66. Qf3+ {[%clk 0:00:44]}  Kc2 {[%clk 0:00:02]} 67. Rxg2+ {[%clk 0:00:43]}  Kb1 {[%clk 0:00:02]} 68. Qb3+ {[%clk 0:00:43]}  Ka1 {[%clk 0:00:02]} 69. Qb2# {[%clk 0:00:44]} 1-0


[Site "https://www.chess.com"]

[Event "Titled Tuesday Blitz May 24 Early 2022"]
[White "Riehle, Marco"]
[Black "Richter, Nils"]
[WhiteFideId "12904392"]
[BlackFideId "12990809"]
[WhiteElo "2462"]
[BlackElo "2243"]
[Result "1-0"]
[Round "04"]
[TimeControl "180+1"]
[Date "2022.05.25"]
[WhiteClock "0:01:22"]
[BlackClock "0:00:12"]

1. e4 {[%clk 0:03:00]}  c5 {[%clk 0:02:57]} 2. a3 {[%clk 0:03:00]}  e5 {[%clk 0:02:54]} 3. Nc3 {[%clk 0:03:00]}  Nc6 {[%clk 0:02:53]} 4. Bc4 {[%clk 0:03:01]}  Nf6 {[%clk 0:02:53]} 5. d3 {[%clk 0:03:01]}  Be7 {[%clk 0:02:52]} 6. f4 {[%clk 0:03:01]}  d6 {[%clk 0:02:51]} 7. Nf3 {[%clk 0:03:02]}  exf4 {[%clk 0:02:50]} 8. Bxf4 {[%clk 0:03:01]}  O-O {[%clk 0:02:50]} 9. O-O {[%clk 0:03:01]}  Nh5 {[%clk 0:02:48]} 10. Be3 {[%clk 0:02:57]}  Be6 {[%clk 0:02:44]} 11. Nd5 {[%clk 0:02:55]}  Kh8 {[%clk 0:02:32]} 12. c3 {[%clk 0:02:45]}  Nf6 {[%clk 0:02:24]} 13. Qd2 {[%clk 0:02:33]}  Ne5 {[%clk 0:02:07]} 14. Nxe5 {[%clk 0:02:33]}  dxe5 {[%clk 0:02:07]} 15. Nxe7 {[%clk 0:02:33]}  Qxe7 {[%clk 0:02:06]} 16. Bg5 {[%clk 0:02:33]}  Bxc4 {[%clk 0:01:37]} 17. Bxf6 {[%clk 0:02:32]}  gxf6 {[%clk 0:01:36]} 18. dxc4 {[%clk 0:02:32]}  Rg8 {[%clk 0:01:33]} 19. Qf2 {[%clk 0:02:32]}  Rg6 {[%clk 0:01:32]} 20. Rad1 {[%clk 0:02:32]}  Qe6 {[%clk 0:01:25]} 21. Qf5 {[%clk 0:02:30]}  Qxc4 {[%clk 0:01:08]} 22. Rf2 {[%clk 0:02:18]}  Rag8 {[%clk 0:01:07]} 23. h3 {[%clk 0:02:17]}  Qe6 {[%clk 0:01:03]} 24. Rd7 {[%clk 0:02:11]}  Qa2 {[%clk 0:00:50]} 25. Kh2 {[%clk 0:02:03]}  Qb1 {[%clk 0:00:32]} 26. Rxf7 {[%clk 0:01:57]}  Qe1 {[%clk 0:00:19]} 27. Rxf6 {[%clk 0:01:51]}  Rxf6 {[%clk 0:00:12]} 28. Qxf6+ {[%clk 0:01:50]}  Rg7 {[%clk 0:00:12]} 29. Qf5 {[%clk 0:01:38]}  Qe3 {[%clk 0:00:10]} 30. Rf3 {[%clk 0:01:30]}  Qe2 {[%clk 0:00:10]} 31. Qf8+ {[%clk 0:01:22]}  Rg8 {[%clk 0:00:11]} 32. Qf6+ {[%clk 0:01:23]}  Rg7 {[%clk 0:00:12]} 33. Rg3 {[%clk 0:01:22]} 1-0


[Site "https://www.chess.com"]

[Event "Titled Tuesday Blitz May 24 Early 2022"]
[White "Rodchenkov, Sergey D."]
[Black "Clawitter, Craig"]
[WhiteFideId "4168712"]
[BlackFideId "2023105"]
[WhiteElo "2306"]
[BlackElo "2226"]
[Result "1-0"]
[Round "04"]
[TimeControl "180+1"]
[Date "2022.05.25"]
[WhiteClock "0:01:25"]
[BlackClock "0:00:07"]

1. e4 {[%clk 0:03:00]}  e6 {[%clk 0:03:00]} 2. d4 {[%clk 0:02:54]}  d5 {[%clk 0:03:00]} 3. Nc3 {[%clk 0:02:54]}  Bb4 {[%clk 0:02:59]} 4. e5 {[%clk 0:02:53]}  c5 {[%clk 0:03:00]} 5. a3 {[%clk 0:02:52]}  Bxc3+ {[%clk 0:03:00]} 6. bxc3 {[%clk 0:02:52]}  Ne7 {[%clk 0:03:01]} 7. Qg4 {[%clk 0:02:52]}  Qc7 {[%clk 0:03:01]} 8. Qxg7 {[%clk 0:02:52]}  Rg8 {[%clk 0:03:02]} 9. Qxh7 {[%clk 0:02:52]}  cxd4 {[%clk 0:03:02]} 10. Ne2 {[%clk 0:02:52]}  Nbc6 {[%clk 0:03:03]} 11. f4 {[%clk 0:02:51]}  dxc3 {[%clk 0:03:02]} 12. h4 {[%clk 0:02:50]}  Bd7 {[%clk 0:02:52]} 13. h5 {[%clk 0:02:50]}  O-O-O {[%clk 0:02:45]} 14. Qd3 {[%clk 0:02:49]}  Nf5 {[%clk 0:02:02]} 15. Rg1 {[%clk 0:02:43]}  Rg4 {[%clk 0:01:56]} 16. Rb1 {[%clk 0:02:32]}  d4 {[%clk 0:01:43]} 17. g3 {[%clk 0:02:16]}  Rdg8 {[%clk 0:01:24]} 18. Bh3 {[%clk 0:02:15]}  R4g7 {[%clk 0:01:00]} 19. g4 {[%clk 0:02:12]}  Nh6 {[%clk 0:00:29]} 20. g5 {[%clk 0:02:11]}  Nf5 {[%clk 0:00:29]} 21. Bxf5 {[%clk 0:02:11]}  exf5 {[%clk 0:00:28]} 22. h6 {[%clk 0:02:12]}  Rg6 {[%clk 0:00:25]} 23. Nxd4 {[%clk 0:02:09]}  Nxd4 {[%clk 0:00:26]} 24. Qxd4 {[%clk 0:02:10]}  Rd8 {[%clk 0:00:16]} 25. h7 {[%clk 0:01:52]}  Bc6 {[%clk 0:00:15]} 26. Qxc3 {[%clk 0:01:53]}  f6 {[%clk 0:00:11]} 27. exf6 {[%clk 0:01:45]}  Re8+ {[%clk 0:00:11]} 28. Be3 {[%clk 0:01:46]}  Qxh7 {[%clk 0:00:10]} 29. Kd2 {[%clk 0:01:26]}  Qh2+ {[%clk 0:00:09]} 30. Kc1 {[%clk 0:01:26]}  Rgg8 {[%clk 0:00:07]} 31. f7 {[%clk 0:01:25]}  Rgf8 {[%clk 0:00:06]} 32. fxe8=Q+ {[%clk 0:01:25]}  Rxe8 {[%clk 0:00:07]} 33. Kb2 {[%clk 0:01:25]} 1-0


[Site "https://www.chess.com"]

[Event "Titled Tuesday Blitz May 24 Early 2022"]
[White "Rom, Jasper"]
[Black "Shuvalova, Polina"]
[WhiteFideId "2023733"]
[BlackFideId "24171760"]
[WhiteElo "2233"]
[BlackElo "2355"]
[Result "1-0"]
[Round "04"]
[TimeControl "180+1"]
[Date "2022.05.25"]
[WhiteClock "0:00:43"]
[BlackClock "0:00:01"]

1. e4 {[%clk 0:03:00]}  c5 {[%clk 0:02:58]} 2. Nc3 {[%clk 0:03:00]}  Nc6 {[%clk 0:02:49]} 3. f4 {[%clk 0:03:00]}  g6 {[%clk 0:02:31]} 4. Nf3 {[%clk 0:02:59]}  Bg7 {[%clk 0:02:32]} 5. Bb5 {[%clk 0:02:59]}  Nd4 {[%clk 0:02:31]} 6. O-O {[%clk 0:02:59]}  Nxb5 {[%clk 0:02:30]} 7. Nxb5 {[%clk 0:03:00]}  d5 {[%clk 0:02:26]} 8. d3 {[%clk 0:03:00]}  Qb6 {[%clk 0:02:23]} 9. c4 {[%clk 0:02:56]}  dxc4 {[%clk 0:02:19]} 10. dxc4 {[%clk 0:02:54]}  Bd7 {[%clk 0:02:14]} 11. Nc3 {[%clk 0:02:50]}  O-O-O {[%clk 0:02:00]} 12. Qc2 {[%clk 0:02:24]}  Bc6 {[%clk 0:01:45]} 13. Be3 {[%clk 0:02:16]}  Nf6 {[%clk 0:01:40]} 14. h3 {[%clk 0:02:10]}  Qb4 {[%clk 0:01:34]} 15. Ne5 {[%clk 0:02:06]}  Be8 {[%clk 0:01:23]} 16. Nd5 {[%clk 0:02:02]}  Nxd5 {[%clk 0:01:20]} 17. cxd5 {[%clk 0:02:02]}  Bxe5 {[%clk 0:00:40]} 18. fxe5 {[%clk 0:01:59]}  b6 {[%clk 0:00:40]} 19. a3 {[%clk 0:01:56]}  Qb5 {[%clk 0:00:39]} 20. b4 {[%clk 0:01:51]}  e6 {[%clk 0:00:22]} 21. d6 {[%clk 0:01:40]}  c4 {[%clk 0:00:21]} 22. Bg5 {[%clk 0:01:12]}  Rd7 {[%clk 0:00:20]} 23. Bf6 {[%clk 0:01:08]}  Rg8 {[%clk 0:00:19]} 24. Rfc1 {[%clk 0:01:06]}  Kb7 {[%clk 0:00:19]} 25. Qxc4 {[%clk 0:00:56]}  Qxc4 {[%clk 0:00:14]} 26. Rxc4 {[%clk 0:00:57]}  g5 {[%clk 0:00:09]} 27. g4 {[%clk 0:00:53]}  Rg6 {[%clk 0:00:07]} 28. Rac1 {[%clk 0:00:45]}  Rxf6 {[%clk 0:00:02]} 29. Rc7+ {[%clk 0:00:43]}  Rxc7 {[%clk 0:00:02]} 30. Rxc7+ {[%clk 0:00:43]}  Kb8 {[%clk 0:00:01]} 31. exf6 {[%clk 0:00:43]} 1-0


[Site "https://www.chess.com"]

[Event "Titled Tuesday Blitz May 24 Early 2022"]
[White "Sailer, Mike"]
[Black "Ljukin, Sergei"]
[WhiteFideId "2012901"]
[BlackFideId "14102200"]
[WhiteElo "2109"]
[BlackElo "2312"]
[Result "0-1"]
[Round "04"]
[TimeControl "180+1"]
[Date "2022.05.25"]
[WhiteClock "0:00:06"]
[BlackClock "0:00:14"]

1. d4 {[%clk 0:02:56]}  d5 {[%clk 0:03:00]} 2. Nf3 {[%clk 0:02:49]}  Nf6 {[%clk 0:02:59]} 3. Bf4 {[%clk 0:02:48]}  c5 {[%clk 0:02:59]} 4. e3 {[%clk 0:02:48]}  Nc6 {[%clk 0:02:59]} 5. Nc3 {[%clk 0:02:48]}  Bg4 {[%clk 0:02:57]} 6. Be2 {[%clk 0:02:44]}  e6 {[%clk 0:02:56]} 7. O-O {[%clk 0:02:40]}  Be7 {[%clk 0:02:56]} 8. Ne5 {[%clk 0:02:39]}  Bxe2 {[%clk 0:02:53]} 9. Nxe2 {[%clk 0:02:38]}  O-O {[%clk 0:02:50]} 10. Nxc6 {[%clk 0:02:36]}  bxc6 {[%clk 0:02:49]} 11. c3 {[%clk 0:02:27]}  Bd6 {[%clk 0:02:43]} 12. Bxd6 {[%clk 0:02:22]}  Qxd6 {[%clk 0:02:43]} 13. dxc5 {[%clk 0:02:17]}  Qxc5 {[%clk 0:02:42]} 14. Qd4 {[%clk 0:02:17]}  Qd6 {[%clk 0:02:42]} 15. c4 {[%clk 0:02:07]}  Rfd8 {[%clk 0:02:24]} 16. cxd5 {[%clk 0:02:05]}  cxd5 {[%clk 0:02:22]} 17. Rfc1 {[%clk 0:01:56]}  e5 {[%clk 0:02:10]} 18. Qc5 {[%clk 0:01:55]}  Qe6 {[%clk 0:01:57]} 19. h3 {[%clk 0:01:25]}  h5 {[%clk 0:01:50]} 20. Qc6 {[%clk 0:01:17]}  Qf5 {[%clk 0:01:47]} 21. Ng3 {[%clk 0:01:14]}  Qg5 {[%clk 0:01:36]} 22. Rc5 {[%clk 0:00:59]}  h4 {[%clk 0:01:22]} 23. Ne2 {[%clk 0:00:53]}  Qf5 {[%clk 0:01:21]} 24. Nc3 {[%clk 0:00:39]}  Rac8 {[%clk 0:01:15]} 25. Qb5 {[%clk 0:00:27]}  Rb8 {[%clk 0:01:11]} 26. Qa5 {[%clk 0:00:27]}  Rd7 {[%clk 0:01:09]} 27. b3 {[%clk 0:00:16]}  Qd3 {[%clk 0:00:44]} 28. Rd1 {[%clk 0:00:16]}  Qc2 {[%clk 0:00:44]} 29. Re1 {[%clk 0:00:05]}  d4 {[%clk 0:00:21]} 30. exd4 {[%clk 0:00:06]}  exd4 {[%clk 0:00:20]} 31. Nd5 {[%clk 0:00:06]}  Qg6 {[%clk 0:00:19]} 32. Nxf6+ {[%clk 0:00:05]}  Qxf6 {[%clk 0:00:19]} 33. Rce5 {[%clk 0:00:05]}  d3 {[%clk 0:00:15]} 34. Re8+ {[%clk 0:00:06]}  Rxe8 {[%clk 0:00:14]} 35. Rxe8+ {[%clk 0:00:06]}  Kh7 {[%clk 0:00:14]} 0-1


[Site "https://www.chess.com"]

[Event "Titled Tuesday Blitz May 24 Early 2022"]
[White "Samadov, Read"]
[Black "Golubev, Mikhail"]
[WhiteFideId "13417444"]
[BlackFideId "14100983"]
[WhiteElo "2084"]
[BlackElo "2374"]
[Result "1/2-1/2"]
[Round "04"]
[TimeControl "180+1"]
[Date "2022.05.24"]
[WhiteClock "0:00:10"]
[BlackClock "0:00:04"]

1. d4 {[%clk 0:03:00]}  Nf6 {[%clk 0:02:59]} 2. c4 {[%clk 0:03:01]}  g6 {[%clk 0:02:58]} 3. Nc3 {[%clk 0:03:00]}  Bg7 {[%clk 0:02:59]} 4. e4 {[%clk 0:03:00]}  d6 {[%clk 0:02:59]} 5. f4 {[%clk 0:03:01]}  O-O {[%clk 0:02:58]} 6. Nf3 {[%clk 0:03:01]}  Na6 {[%clk 0:02:57]} 7. Bd3 {[%clk 0:02:57]}  Bg4 {[%clk 0:02:51]} 8. h3 {[%clk 0:02:49]}  Bxf3 {[%clk 0:02:50]} 9. Qxf3 {[%clk 0:02:49]}  e5 {[%clk 0:02:42]} 10. fxe5 {[%clk 0:02:48]}  dxe5 {[%clk 0:02:32]} 11. d5 {[%clk 0:02:49]}  c6 {[%clk 0:02:21]} 12. O-O {[%clk 0:02:45]}  cxd5 {[%clk 0:02:13]} 13. cxd5 {[%clk 0:02:43]}  Ne8 {[%clk 0:02:09]} 14. Be3 {[%clk 0:02:42]}  Nd6 {[%clk 0:01:57]} 15. Rac1 {[%clk 0:02:31]}  Nc7 {[%clk 0:01:50]} 16. b3 {[%clk 0:02:26]}  Qd7 {[%clk 0:01:48]} 17. Na4 {[%clk 0:02:20]}  f5 {[%clk 0:01:40]} 18. Nc5 {[%clk 0:02:18]}  Qe7 {[%clk 0:01:40]} 19. Qe2 {[%clk 0:02:09]}  b6 {[%clk 0:01:39]} 20. exf5 {[%clk 0:01:53]}  bxc5 {[%clk 0:01:31]} 21. fxg6 {[%clk 0:01:53]}  e4 {[%clk 0:01:22]} 22. gxh7+ {[%clk 0:01:52]}  Kh8 {[%clk 0:01:20]} 23. Bxc5 {[%clk 0:01:49]}  Nxd5 {[%clk 0:01:19]} 24. Rxf8+ {[%clk 0:00:59]}  Rxf8 {[%clk 0:01:15]} 25. Bxd6 {[%clk 0:00:45]}  Qxd6 {[%clk 0:01:16]} 26. Qxe4 {[%clk 0:00:45]}  Nc3 {[%clk 0:00:48]} 27. Qc4 {[%clk 0:00:37]}  Rd8 {[%clk 0:00:43]} 28. Bf1 {[%clk 0:00:24]}  Bd4+ {[%clk 0:00:31]} 29. Kh1 {[%clk 0:00:24]}  Qg3 {[%clk 0:00:30]} 30. Qe6 {[%clk 0:00:14]}  Be5 {[%clk 0:00:23]} 31. Kg1 {[%clk 0:00:12]}  Ne4 {[%clk 0:00:17]} 32. Bc4 {[%clk 0:00:08]}  Qf2+ {[%clk 0:00:14]} 33. Kh1 {[%clk 0:00:08]}  Ng3+ {[%clk 0:00:12]} 34. Kh2 {[%clk 0:00:08]}  Nf1+ {[%clk 0:00:06]} 35. Kh1 {[%clk 0:00:09]}  Ng3+ {[%clk 0:00:05]} 36. Kh2 {[%clk 0:00:09]}  Nf1+ {[%clk 0:00:04]} 37. Kh1 {[%clk 0:00:10]}  Ng3+ {[%clk 0:00:04]} 1/2-1/2


[Site "https://www.chess.com"]